fUSD/lending_fUSD_20240118
["ID","MTS","AMOUNT","RATE_DAILY","PERIOD"]
[312038490,1705567850626,-517.38,0.00022739,2]
[312038491,1705567850636,-1305.5,0.00022739,2]
[312038492,1705567850646,-715.22,0.00022739,2]
[312038493,1705567850656,-500.0,0.00022739,2]
[312038494,1705567850666,-500.0,0.00022739,2]
[312038495,1705567850676,-1697.47,0.00022739,2]
[312038496,1705567850686,-555.68,0.00022739,2]
[312038497,1705567850698,-995.02,0.00022739,2]
[312038498,1705567850708,-500.0,0.00022739,2]
[312038499,1705567850718,-1176.22,0.00022739,2]
[312038500,1705567850728,-536.16,0.00022739,2]
[312038501,1705567850738,-334.97,0.00022739,2]
[312038502,1705567850948,-500.0,0.00022739,2]
[312038503,1705567850994,-500.0,0.00022739,2]
[312038504,1705567851005,-543.51,0.00022739,2]
[312038505,1705567851014,-500.0,0.00022739,2]
[312038506,1705567851024,-640.73,0.00022739,2]
[312038507,1705567851034,-1216.46,0.00022739,2]
[312038508,1705567851044,-644.14,0.00022739,2]
[312038509,1705567851054,-500.0,0.00022739,2]
[312038510,1705567851064,-725.46,0.00022739,2]
[312038511,1705567851073,-858.83,0.00022739,2]
[312038512,1705567851083,-500.0,0.00022739,2]
[312038513,1705567851092,-1070.85,0.00022739,2]
[312038514,1705567851102,-500.0,0.00022739,2]
[312038515,1705567851111,-557.14,0.00022739,2]
[312038516,1705567851120,-500.0,0.00022739,2]
[312038517,1705567851130,-7375.31,0.00022739,2]
[312038518,1705567851139,-554.02,0.00022739,2]
[312038519,1705567851148,-500.0,0.00022739,2]
[312038520,1705567851158,-3675.59,0.00022739,2]
[312038521,1705567851168,-507.37,0.00022739,2]
[312038522,1705567851177,-596.95,0.00022739,2]
[312038523,1705567851186,-500.0,0.00022739,2]
[312038524,1705567851196,-1017.86,0.00022739,2]
[312038525,1705567851205,-614.04,0.00022739,2]
[312038526,1705567851214,-500.0,0.00022739,2]
[312038527,1705567851223,-500.0,0.00022739,2]
[312038528,1705567851232,-500.0,0.00022739,5]
[312038529,1705567851242,-2031.02,0.00022739,2]
[312038530,1705567851252,-500.0,0.00022739,2]
[312038531,1705567851261,-1380.7,0.00022739,2]
[312038532,1705567851270,-853.84,0.00022739,2]
[312038533,1705567851279,-592.14,0.00022739,2]
[312038534,1705567851289,-755.21,0.00022739,2]
[312038535,1705567851299,-500.0,0.00022739,2]
[312038536,1705567851308,-654.56,0.00022739,2]
[312038537,1705567851317,-687.24,0.00022739,2]
[312038538,1705567851327,-810.56,0.00022739,2]
[312038539,1705567851337,-691.03,0.00022739,2]
[312038540,1705567851346,-500.0,0.00022739,2]
[312038541,1705567851356,-930.12,0.00022739,2]
[312038542,1705567851365,-1078.05,0.00022739,2]
[312038543,1705567851374,-500.0,0.00022739,2]
[312038544,1705567851383,-634.42,0.00022739,2]
[312038545,1705567851392,-500.0,0.00022739,2]
[312038546,1705567851402,-500.0,0.00022739,2]
[312038547,1705567851411,-500.0,0.00022739,2]
[312038548,1705567851421,-913.23,0.00022739,2]
[312038549,1705567851430,-500.0,0.00022739,2]
[312038550,1705567851440,-500.0,0.00022739,2]
[312038551,1705567851449,-500.0,0.00022739,2]
[312038552,1705567851459,-500.0,0.00022739,2]
[312038553,1705567851468,-1509.06,0.00022739,2]
[312038554,1705567851478,-500.0,0.00022739,2]
[312038555,1705567851487,-500.0,0.00022739,2]
[312038556,1705567851496,-772.25,0.00022739,2]
[312038557,1705567851505,-500.0,0.00022739,2]
[312038558,1705567851514,-500.0,0.00022739,2]
[312038559,1705567851524,-1080.39,0.00022739,2]
[312038560,1705567851533,-846.77,0.00022739,2]
[312038561,1705567851542,-500.0,0.00022739,2]
[312038562,1705567851553,-914.38,0.00022739,2]
[312038563,1705567851562,-500.0,0.00022739,2]
[312038564,1705567851571,-500.0,0.00022739,2]
[312038565,1705567851581,-500.0,0.00022739,2]
[312038566,1705567851592,-1619.86,0.00022739,2]
[312038567,1705567851602,-718.76,0.00022739,5]
[312038568,1705567851610,-835.9,0.00022739,2]
[312038569,1705567851620,-1741.77,0.00022739,2]
[312038570,1705567851629,-500.0,0.00022739,2]
[312038571,1705567851638,-500.0,0.00022739,2]
[312038572,1705567851647,-500.0,0.00022739,2]
[312038573,1705567851656,-500.0,0.00022739,2]
[312038574,1705567851665,-500.0,0.00022739,2]
[312038575,1705567851674,-2024.63,0.00022739,2]
[312038576,1705567851684,-500.0,0.00022739,2]
[312038577,1705567851694,-2503.52,0.00022739,2]
[312038578,1705567851705,-500.0,0.00022739,2]
[312038579,1705567851714,-153.0,0.00022766,2]
[312038580,1705567851723,-153.0,0.00022766,2]
[312038581,1705567851733,-153.0,0.00022766,2]
[312038582,1705567851742,-1188.55283836,0.0002277,2]
[312038583,1705567851751,-1234.25312865,0.0002277,2]
[312038584,1705567851760,-346.56102771,0.0002277,2]
[312038585,1705567851770,-237.59237965,0.0002277,2]
[312038586,1705567851781,-4907.21632641,0.0002277,2]
[312038587,1705567851790,-161.23,0.00022773,2]
[312038588,1705567851799,-167.62510282,0.000228,2]
[312038589,1705567851809,-180.0,0.00022877,2]
[312038590,1705567851818,-750.0,0.000229,2]
[312038591,1705567851829,-58000.0,0.000229,2]
[312038592,1705567851839,-5800.0,0.000229,2]
[312038593,1705567851848,-152.01543037,0.000229,2]
[312038594,1705567851858,-152.01543011,0.000229,2]
[312038595,1705567851868,-152.01543011,0.000229,2]
[312038596,1705567851878,-152.01543011,0.000229,2]
[312038597,1705567851888,-152.01543011,0.000229,2]
[312038598,1705567851897,-1188.55283836,0.000229,2]
[312038599,1705567851906,-1234.25312865,0.000229,2]
[312038600,1705567851916,-346.56102771,0.000229,2]
[312038601,1705567851925,-153.2,0.00022913,2]
[312038602,1705567851935,-152.01543011,0.00022926,2]
[312038603,1705567851945,-93161.335751,0.00022996,2]
[312038604,1705567851954,-13875.2059754,0.00022996,2]
[312038605,1705567851963,-11261.8903156,0.00022996,2]
[312038606,1705567851972,-10180.58084387,0.00022996,2]
[312038607,1705567852619,-500.0,0.00021917,2]
[312038608,1705567852630,-140.041,0.00021917,2]
[312038609,1705567852643,-359.959,0.00021917,2]
[312038610,1705567852652,-500.0,0.00021917,2]
[312038611,1705567852661,-123.86316087,0.00022191,2]
[312038612,1705567852675,-376.13683913,0.00022191,2]
[312038613,1705567852685,-360.37,0.00022191,2]
[312038614,1705567852695,-500.0,0.00022465,2]
[312038615,1705567852706,-109.80686853,0.00022996,2]
[312038616,1705567852717,-509.73860691,0.00022996,2]
[312038617,1705567852728,-649.02,0.00022996,2]
[312038618,1705567852740,-495.56335415,0.00022996,2]
[312038619,1705567852756,-324.83345453,0.00022739,2]
[312038620,1705567852768,-175.16654547,0.00022739,2]
[312038621,1705567852779,-119.74665522,0.00022996,2]
[312038622,1705567852790,-592.97684299,0.00022996,2]
[312038623,1705567852801,-1297.58622857,0.00022996,2]
[312038624,1705567852812,-330.0,0.00022996,2]
[312038625,1705567852823,-410.04619324,0.00022996,2]
[312038626,1705567852846,-237.59237965,0.000229,2]
[312038627,1705567852855,-15494.59941682,0.00022996,2]
[312038628,1705567852864,-7389.3170073,0.00022996,2]
[312038629,1705567852874,-67475.69007964,0.00022996,2]
[312038630,1705567852965,-4667.51202006,0.00022996,2]
[312038631,1705567852974,-150.01,0.00022997,2]
[312038632,1705567852984,-2308.66104933,0.00022997,2]
[312038633,1705567853009,-987.55705771,0.00022997,2]
[312038634,1705567853018,-166.15555864,0.00022997,2]
[312038635,1705567853027,-5775.95315579,0.00022998,2]
[312038636,1705567853041,-18363.66782195,0.00022998,2]
[312038637,1705567853053,-1351.65687921,0.00022998,2]
[312038638,1705567853119,-204169.39795503,0.00022998,2]
[312038639,1705567853255,-831.8685269,0.00022998,2]
[312038640,1705567853574,-503.10188719,0.00021917,2]
[312038641,1705567853585,-150.99,0.00022429,2]
[312038642,1705567853594,-7674.11128239,0.00022998,2]
[312038643,1705567853605,-7973.9466717,0.00022998,2]
[312038644,1705567853616,-541.88479081,0.00022998,2]
[312038645,1705567853631,-1034.76369751,0.00022998,2]
[312038646,1705567853642,-1367.80188262,0.00022998,2]
[312038647,1705567853653,-3069.63889084,0.00022998,2]
[312038648,1705567853664,-7263.01490479,0.00022998,2]
[312038649,1705567853675,-3505.82174992,0.00022998,2]
[312038650,1705567853687,-3921.10475508,0.00022998,2]
[312038651,1705567853701,-3791.27958291,0.00022998,2]
[312038652,1705567853712,-266.43816103,0.00022998,2]
[312038653,1705567853723,-569.85819587,0.00022998,2]
[312038654,1705567853734,-864.39749552,0.00022998,2]
[312038655,1705567853746,-2137.2968041,0.00022998,2]
[312038656,1705567853757,-5177.05066905,0.00022998,2]
[312038657,1705567853768,-717.14339935,0.00022998,2]
[312038658,1705567853780,-409.79455518,0.00022998,2]
[312038659,1705567853792,-5512.38230237,0.00022998,2]
[312038660,1705567853803,-265.57235232,0.00022998,2]
[312038661,1705567853814,-1588.94284284,0.00022998,2]
[312038662,1705567853826,-405.00113522,0.00022998,2]
[312038663,1705567853837,-1192.9975616,0.00022998,2]
[312038664,1705567853857,-145336.60711632,0.00022998,2]
[312038665,1705567853865,-9777.233265,0.00022998,2]
[312038666,1705567853874,-52191.83728459,0.00022998,2]
[312038667,1705567854263,-500.0,0.00021917,2]
[312038668,1705567854272,-236.19737716,0.00021917,2]
[312038669,1705567854283,-263.80262284,0.00021917,2]
[312038670,1705567854292,-256.0,0.00022429,2]
[312038671,1705567854301,-7101.50916187,0.00022998,2]
[312038672,1705567854312,-595.87151147,0.00022998,2]
[312038673,1705567854325,-2917.07191089,0.00022998,2]
[312038674,1705567854337,-790.76644118,0.00022998,2]
[312038675,1705567854346,-677.10861018,0.00022999,2]
[312038676,1705567854368,-466.90872895,0.00022999,2]
[312038677,1705567854377,-151.27598055,0.00022999,2]
[312038678,1705567854386,-2842.87454,0.00023,2]
[312038679,1705567854409,-500.0,0.00022191,2]
[312038680,1705567854418,-152.38094598,0.00023,2]
[312038681,1705567854429,-411.21732355,0.00023,2]
[312038682,1705567869539,340.53,0.00020167,2]
[312038683,1705567921409,3704.17,0.000155,2]
[312038684,1705567921434,2512.27432158,0.000155,2]
[312038685,1705567925636,603.3192988,0.0002,2]
[312038692,1705567948350,1881.3270283,0.00015,2]
[312038693,1705567968494,155.57149971,0.000155,2]
[312038694,1705567969159,543.69034289,0.000155,2]
[312038695,1705567971904,341.63773526,0.000155,2]
[312038696,1705567985861,3959.10042214,0.000155,2]
[312038697,1705567985886,1142.93159535,0.000155,2]
[312038698,1705568003853,1194.42992742,0.000155,2]
[312038699,1705568039597,2105.71782855,0.0002,2]
[312038700,1705568039621,994.28217145,0.0002,2]
[312038701,1705568051626,1380.53449203,0.0002,2]
[312038702,1705568051651,119.46550697,0.0002,2]
[312038703,1705568055018,319.93473256,0.00012,30]
[312038704,1705568085303,1970.502977,0.00035204,30]
[312038705,1705568418549,334.85,0.0001886,2]
[312038707,1705568493653,207.0,0.00020293,2]
[312038708,1705568494282,1891.445896,0.00035213,30]
[312038709,1705568557975,-150.0,0.00020717,2]
[312038710,1705568558000,-366.95,0.00020717,2]
[312038711,1705568558136,-3190.67771766,0.00020743,2]
[312038712,1705568558162,-223.17,0.00020744,2]
[312038713,1705568558189,-6969.20228234,0.00020806,2]
[312038714,1705568569709,-155.68,0.00020787,2]
[312038715,1705568582577,-930.79771766,0.00020806,2]
[312038716,1705568583859,-930.79771766,0.00020806,2]
[312038717,1705568589600,305.638467,0.00035213,30]
[312038718,1705568591551,-930.79771766,0.00020806,2]
[312038719,1705568592372,-930.79771766,0.00020806,2]
[312038720,1705568593192,-930.79771766,0.00020806,2]
[312038721,1705568658012,500.0,0.00035213,120]
[312038724,1705568863372,340.62,0.00018684,2]
[312038726,1705568938887,175.3,0.00016444,2]
[312038730,1705568985043,1970.502977,0.00035216,30]
[312038749,1705569032244,-392.47589248,0.00020514,2]
[312038750,1705569032256,-1137.69259586,0.00020514,2]
[312038751,1705569032268,-350.0,0.00020514,2]
[312038752,1705569032283,-661.68277074,0.00020514,2]
[312038754,1705569032305,-965.17012946,0.00020514,2]
[312038755,1705569032317,-20392.97861146,0.00020514,2]
[312038756,1705569032326,-200.0,0.00020563,2]
[312038757,1705569032337,-159.64015465,0.0002065,2]
[312038758,1705569032347,-250.0,0.00020667,2]
[312038759,1705569032356,-154.15,0.00020667,2]
[312038760,1705569032365,-855.99554936,0.00020721,2]
[312038761,1705569032375,-1000.0,0.00020737,2]
[312038762,1705569032384,-2000.0,0.00020747,2]
[312038763,1705569032393,-230.4,0.00020749,2]
[312038764,1705569032403,-370.72,0.00020749,2]
[312038765,1705569032412,-925.75,0.00020749,2]
[312038766,1705569032422,-1000.0,0.00020805,2]
[312038767,1705569032431,-166.91,0.00020826,2]
[312038768,1705569032441,-152.04,0.00020913,2]
[312038769,1705569032454,-340.62,0.00020948,2]
[312038770,1705569032463,-156.2,0.0002096,2]
[312038771,1705569032472,-1134.33673436,0.00021038,2]
[312038772,1705569032481,-1000.0,0.00021099,2]
[312038773,1705569032495,-154.15,0.00021126,2]
[312038774,1705569032509,-769.6,0.00021181,2]
[312038775,1705569032519,-156.51,0.0002127,2]
[312038776,1705569032528,-156.2,0.0002131,2]
[312038777,1705569032537,-1000.0,0.000214,2]
[312038778,1705569032546,-154.15,0.00021585,2]
[312038779,1705569032556,-1000.0,0.00021629,2]
[312038780,1705569032565,-4903.57,0.00021644,2]
[312038781,1705569032574,-156.2,0.00021659,2]
[312038782,1705569032583,-280.79430241,0.00021696,2]
[312038783,1705569032592,-370.70986901,0.00021728,2]
[312038786,1705569032605,-0.01013099,0.00021728,2]
[312038787,1705569032618,-943.98501614,0.00021761,2]
[312038788,1705569032630,-156.56938386,0.00021761,2]
[312038789,1705569032639,-678.7794,0.00021817,2]
[312038790,1705569032648,-572.02645008,0.00021915,2]
[312038791,1705569032657,-1129.45510728,0.00021915,2]
[312038792,1705569032666,-590.09098926,0.00021915,2]
[312038793,1705569032679,-777.26901074,0.00021915,2]
[312038794,1705569032688,-1447.26864615,0.00021915,2]
[312038795,1705569032703,-1542.2530309,0.00021915,2]
[312038796,1705569032715,-6194.86897003,0.00021915,2]
[312038797,1705569032740,-1364.12955615,0.00021915,2]
[312038798,1705569032750,-532.70995754,0.00021915,2]
[312038799,1705569032759,-169.58089598,0.00021915,2]
[312038800,1705569032768,-2312.78972333,0.00021915,2]
[312038801,1705569032779,-197.40422307,0.00021915,2]
[312038802,1705569032788,-1028.69820676,0.00021915,2]
[312038803,1705569032798,-758.72176657,0.00021915,2]
[312038804,1705569032807,-212.24291872,0.00021916,2]
[312038805,1705569032816,-2035.74402954,0.00021916,2]
[312038806,1705569032826,-159.2957852,0.00021916,2]
[312038807,1705569032835,-1708.02080546,0.00021916,2]
[312038808,1705569032845,-154.12,0.00021916,2]
[312038809,1705569032854,-500.0,0.00021917,2]
[312038810,1705569032864,-500.0,0.00021917,2]
[312038811,1705569032873,-500.0,0.00021917,2]
[312038812,1705569032882,-505.09727432,0.00021917,2]
[312038813,1705569033187,-513.83923632,0.00021917,2]
[312038814,1705569033197,-500.0,0.00021917,2]
[312038815,1705569033209,-507.21568383,0.00021917,2]
[312038816,1705569033219,-523.95277485,0.00021917,2]
[312038817,1705569033228,-489.41,0.00021917,2]
[312038818,1705569033238,-505.89728767,0.00021917,2]
[312038819,1705569033247,-500.0,0.00021917,2]
[312038820,1705569033256,-500.0,0.00021917,2]
[312038821,1705569033265,-500.0,0.00021917,2]
[312038822,1705569033275,-500.0,0.00021917,2]
[312038823,1705569033284,-500.0,0.00021917,2]
[312038824,1705569033293,-500.0,0.00021917,2]
[312038825,1705569033303,-500.0,0.00021917,2]
[312038826,1705569033312,-500.0,0.00021917,2]
[312038827,1705569033321,-502.94922698,0.00021917,2]
[312038828,1705569033331,-500.0,0.00021917,2]
[312038829,1705569033340,-564.6348984,0.00021917,2]
[312038830,1705569033349,-235.57496122,0.00021917,2]
[312038831,1705569033358,-500.0,0.00021917,2]
[312038832,1705569033368,-420.17690422,0.00021917,2]
[312038833,1705569033382,-79.82309578,0.00021917,2]
[312038834,1705569033391,-500.0,0.00021917,2]
[312038835,1705569033400,-493.7256577,0.00021917,2]
[312038836,1705569033412,-20.5443423,0.00021917,2]
[312038837,1705569033421,-500.0,0.00021917,2]
[312038838,1705569033430,-88.63043989,0.00021917,2]
[312038839,1705569033442,-411.36956011,0.00021917,2]
[312038840,1705569033451,-89.2471542,0.00021917,2]
[312038841,1705569038280,-410.7528458,0.00021917,2]
[312038842,1705569038289,-33.22332821,0.00021917,2]
[312038843,1705569038302,-466.77667179,0.00021917,2]
[312038844,1705569038312,-604.53,0.00021917,2]
[312038845,1705569038322,-332.52859172,0.00021917,2]
[312038846,1705569038390,-167.47140828,0.00021917,2]
[312038847,1705569038399,-278.57514638,0.00021917,2]
[312038848,1705569038550,-227.62957167,0.00021917,2]
[312038849,1705569038559,-369.36346061,0.00021917,2]
[312038850,1705569038571,-130.63653939,0.00021917,2]
[312038851,1705569038581,-230.72238273,0.00021917,2]
[312038852,1705569038592,-269.27761727,0.00021917,2]
[312038853,1705569038602,-270.86436901,0.00021917,2]
[312038854,1705569038614,-229.13563099,0.00021917,2]
[312038855,1705569038623,-193.03227001,0.00021917,2]
[312038856,1705569038635,-306.96772999,0.00021917,2]
[312038857,1705569038644,-500.0,0.00021917,2]
[312038858,1705569038654,-500.0,0.00021917,2]
[312038859,1705569038663,-500.0,0.00021917,2]
[312038860,1705569038672,-500.0,0.00021917,2]
[312038861,1705569038681,-500.0,0.00021917,2]
[312038862,1705569038691,-500.0,0.00021917,2]
[312038863,1705569038700,-500.0,0.00021917,2]
[312038864,1705569038709,-519.90741871,0.00021917,2]
[312038865,1705569038719,-500.0,0.00021917,2]
[312038866,1705569038728,-500.0,0.00021917,2]
[312038867,1705569038737,-500.0,0.00021917,2]
[312038868,1705569038746,-509.42,0.00021917,2]
[312038869,1705569038756,-508.06361114,0.00021917,2]
[312038870,1705569038765,-500.0,0.00021917,2]
[312038871,1705569038774,-520.09182232,0.00021917,2]
[312038872,1705569038783,-500.0,0.00021917,2]
[312038873,1705569038793,-500.0,0.00021917,2]
[312038874,1705569038802,-500.0,0.00021917,2]
[312038875,1705569038811,-500.0,0.00021917,2]
[312038876,1705569038821,-500.0,0.00021917,2]
[312038877,1705569038831,-500.0,0.00021917,2]
[312038878,1705569038841,-500.0,0.00021917,2]
[312038879,1705569038850,-500.0,0.00021917,2]
[312038880,1705569038859,-500.0,0.00021917,2]
[312038881,1705569038868,-500.0,0.00021917,2]
[312038882,1705569038878,-500.0,0.00021917,2]
[312038883,1705569038887,-500.0,0.00021917,2]
[312038884,1705569038896,-500.0,0.00021917,2]
[312038885,1705569038906,-549.7,0.00021917,2]
[312038886,1705569038915,-500.0,0.00021917,2]
[312038887,1705569038924,-500.0,0.00021917,2]
[312038888,1705569038933,-500.0,0.00021917,2]
[312038889,1705569038942,-500.0,0.00021917,2]
[312038890,1705569038951,-506.69822752,0.00021917,2]
[312038891,1705569038960,-500.0,0.00021917,2]
[312038892,1705569038970,-464.09545675,0.00021917,2]
[312038893,1705569038984,-35.90454325,0.00021917,2]
[312038894,1705569038993,-500.0,0.00021917,2]
[312038895,1705569039003,-74.39801757,0.00021917,2]
[312038896,1705569039015,-429.26925103,0.00021917,2]
[312038897,1705569039024,-500.0,0.00021917,2]
[312038898,1705569039033,-500.0,0.00021917,2]
[312038920,1705569039250,-500.0,0.00021917,2]
[312038922,1705569039260,-500.0,0.00021917,2]
[312038924,1705569039269,-117.11651946,0.00021917,2]
[312038926,1705569039281,-382.88348054,0.00021917,2]
[312038928,1705569039290,-500.0,0.00021917,2]
[312038930,1705569039300,-500.0,0.00021917,2]
[312038932,1705569039310,-500.0,0.00021917,2]
[312038934,1705569039319,-500.0,0.00021917,2]
[312038937,1705569039330,-500.0,0.00021917,2]
[312038938,1705569039339,-135.3094825,0.00021917,2]
[312038942,1705569039359,-364.6905175,0.00021917,2]
[312038944,1705569039369,-500.0,0.00021917,2]
[312038945,1705569039379,-137.77414501,0.00021917,2]
[312039252,1705569043379,-362.22585499,0.00021917,2]
[312039254,1705569043388,-500.0,0.00021917,2]
[312039256,1705569043397,-500.0,0.00021917,2]
[312039258,1705569043406,-523.07894434,0.00021917,2]
[312039260,1705569043416,-500.0,0.00021917,2]
[312039262,1705569043425,-500.0,0.00021917,2]
[312039264,1705569043434,-500.0,0.00021917,2]
[312039266,1705569043443,-500.0,0.00021917,2]
[312039268,1705569043452,-500.0,0.00021917,2]
[312039270,1705569043461,-500.0,0.00021917,2]
[312039272,1705569043470,-500.0,0.00021917,2]
[312039274,1705569043479,-500.0,0.00021917,2]
[312039276,1705569043488,-500.0,0.00021917,2]
[312039278,1705569043497,-500.0,0.00021917,2]
[312039280,1705569043506,-500.0,0.00021917,2]
[312039281,1705569043515,-500.0,0.00021917,2]
[312039283,1705569043525,-500.0,0.00021917,2]
[312039285,1705569043533,-500.0,0.00021917,2]
[312039287,1705569043543,-500.0,0.00021917,2]
[312039288,1705569043552,-500.0,0.00021917,2]
[312039289,1705569043561,-500.0,0.00021917,2]
[312039290,1705569043570,-500.0,0.00021917,2]
[312039291,1705569043579,-500.0,0.00021917,2]
[312039292,1705569043588,-500.0,0.00021917,2]
[312039293,1705569043598,-500.0,0.00021917,2]
[312039294,1705569043607,-500.0,0.00021917,2]
[312039295,1705569043615,-500.0,0.00021917,2]
[312039296,1705569043625,-500.0,0.00021917,2]
[312039297,1705569043635,-500.0,0.00021917,2]
[312039298,1705569043645,-500.0,0.00021917,2]
[312039299,1705569043655,-500.0,0.00021917,2]
[312039300,1705569043666,-500.0,0.00021917,2]
[312039301,1705569043675,-500.0,0.00021917,2]
[312039302,1705569043686,-500.0,0.00021917,2]
[312039303,1705569043695,-500.0,0.00021917,2]
[312039304,1705569043706,-500.0,0.00021917,2]
[312039305,1705569043716,-500.0,0.00021917,2]
[312039306,1705569043724,-608.66,0.00021917,2]
[312039307,1705569043734,-500.0,0.00021917,2]
[312039308,1705569043744,-500.0,0.00021917,2]
[312039309,1705569043753,-500.0,0.00021917,2]
[312039310,1705569043763,-500.0,0.00021917,2]
[312039311,1705569043773,-500.0,0.00021917,2]
[312039313,1705569043783,-502.15347886,0.00021917,2]
[312039314,1705569043792,-500.0,0.00021917,2]
[312039315,1705569043801,-500.0,0.00021917,2]
[312039316,1705569043810,-505.39662963,0.00021917,2]
[312039317,1705569043818,-500.0,0.00021917,2]
[312039318,1705569043827,-500.0,0.00021917,2]
[312039319,1705569043836,-500.0,0.00021917,2]
[312039320,1705569043847,-500.0,0.00021917,2]
[312039321,1705569043858,-500.0,0.00021917,2]
[312039322,1705569043868,-500.0,0.00021917,2]
[312039323,1705569043877,-500.0,0.00021917,2]
[312039324,1705569043888,-500.0,0.00021917,2]
[312039325,1705569044102,-500.0,0.00021917,2]
[312039326,1705569044111,-636.95,0.00021917,2]
[312039327,1705569044122,-500.0,0.00021917,2]
[312039328,1705569044132,-500.0,0.00021917,2]
[312039329,1705569044141,-500.0,0.00021917,2]
[312039330,1705569044150,-500.0,0.00021917,2]
[312039331,1705569044160,-500.0,0.00021917,2]
[312039332,1705569044169,-500.0,0.00021917,2]
[312039333,1705569044178,-505.63902613,0.00021917,2]
[312039334,1705569044187,-500.0,0.00021917,2]
[312039335,1705569044197,-500.0,0.00021917,2]
[312039336,1705569044206,-500.0,0.00021917,2]
[312039337,1705569044216,-500.0,0.00021917,2]
[312039338,1705569044226,-500.0,0.00021917,2]
[312039339,1705569044236,-503.73689015,0.00021917,2]
[312039340,1705569044246,-500.0,0.00021917,2]
[312039341,1705569044256,-500.0,0.00021917,2]
[312039342,1705569044265,-500.0,0.00021917,2]
[312039343,1705569044275,-502.08912068,0.00021917,2]
[312039344,1705569044285,-500.0,0.00021917,2]
[312039345,1705569044294,-275.07711272,0.00021917,2]
[312039346,1705569044303,-500.0,0.00021917,2]
[312039347,1705569044312,-500.0,0.00021917,2]
[312039348,1705569044322,-500.0,0.00021917,2]
[312039349,1705569044331,-502.33427548,0.00021917,2]
[312039350,1705569044342,-500.0,0.00021917,2]
[312039351,1705569044351,-500.0,0.00021917,2]
[312039352,1705569044360,-391.38482186,0.00021917,2]
[312039353,1705569044369,-500.0,0.00021917,2]
[312039354,1705569044378,-611.53,0.00021917,2]
[312039355,1705569044387,-500.0,0.00021917,2]
[312039356,1705569044397,-602.1,0.00021917,2]
[312039357,1705569044406,-500.0,0.00021917,2]
[312039358,1705569044416,-505.99677516,0.00021917,2]
[312039359,1705569044425,-500.0,0.00021917,2]
[312039360,1705569044435,-500.0,0.00021917,2]
[312039361,1705569044445,-501.97983888,0.00021917,2]
[312039362,1705569044454,-617.84326573,0.00021917,2]
[312039363,1705569044465,-504.05927982,0.00021917,2]
[312039364,1705569044476,-500.0,0.00021917,2]
[312039365,1705569044486,-500.0,0.00021917,2]
[312039366,1705569044495,-500.0,0.00021917,2]
[312039367,1705569044505,-500.0,0.00021917,2]
[312039368,1705569044515,-500.0,0.00021917,2]
[312039369,1705569044525,-500.0,0.00021917,2]
[312039370,1705569044535,-507.33589789,0.00021917,2]
[312039371,1705569044545,-500.0,0.00021917,2]
[312039372,1705569044555,-500.0,0.00021917,2]
[312039373,1705569044566,-500.0,0.00021917,2]
[312039374,1705569044575,-500.0,0.00021917,2]
[312039375,1705569044585,-3071.41,0.00021917,2]
[312039376,1705569044597,-500.0,0.00021917,2]
[312039377,1705569044606,-500.0,0.00021917,2]
[312039378,1705569044616,-500.0,0.00021917,2]
[312039379,1705569044626,-500.0,0.00021917,2]
[312039380,1705569044638,-500.0,0.00021917,2]
[312039381,1705569044647,-500.0,0.00021917,2]